Cogmind - Beta 16.1 @@@ ROGUE MODE // 2026.04.08 @ 15:13:21 Player: Maelyn Result: Destroyed by S-10 Pest with Light Assault Rifle Performance ------------- Evolutions (2) 1000 Regions Visited (4) 800 Robots Destroyed (29) 145 Value Destroyed (806) 806 Prototype IDs (1) 20 Alien Tech Used (0) 0 Bonus (0) 0 TOTAL SCORE: 2771 Bonus ------- None Cogmind --------- Core Integrity 0/550 Matter 179/300 Energy 66/100 System Corruption 0% Temperature Cool (0) Movement Core (200) Ox3 Location -8/Materials Parts ------- > --- POWER (1) -------- (None) > --- PROPULSION (2) --- (None) > --- UTILITY (5) ------ Medium Storage Unit Visual Processing Unit System Shield > --- WEAPON (3) ------- Datajack > --- INVENTORY (10) --- Improved VTOL Module Medium Storage Unit Improved Sensor Array Improved Targeting Computer Light Armor Plating Shield Generator Peak State ------------ > --- POWER ------------ Improved Ion Engine > --- PROPULSION ------- Improved Aluminum Leg Improved Aluminum Leg > --- UTILITY ---------- Medium Storage Unit Visual Processing Unit Improved Sensor Array ECM Suite > --- WEAPON ----------- Minigun Minigun > --- INVENTORY -------- Ion Engine Light Ion Engine Hover Unit Hover Unit Improved Sensor Array Improved Sensor Array Improved Terrain Scanner Minigun Minigun Grenade Launcher [Rating: 21] Favorites ----------- Power Improved Ion Engine Engine Improved Ion Engine Power Core Light Nuclear Core Propulsion Light Treads Treads Light Treads Leg Improved Aluminum Leg Hover Unit Hover Unit Flight Unit Improved VTOL Module Utility Medium Storage Unit Device Improved Sensor Array Storage Medium Storage Unit Processor Visual Processing Unit Hackware System Shield Protection Light Armor Plating Weapon Minigun Energy Gun Small Laser Ballistic Gun Minigun Special Melee Weapon Datajack Build | -11 -10 -9 -9 -8 ------- Run | Yrd Mat Mat Sto Mat Slots Evolved 4 | . . 2 . 2 Power . | . . . . . Propulsion . | . . . . . Utility 3 | . . 2 . 1 Weapon 1 | . . . . 1 Parts Attached 43 | 6 2 9 16 10 Power 5 | 1 . 1 2 1 Engine 4 | 1 . 1 2 . Core 1 | . . . . 1 Reactor . | . . . . . Propulsion 12 | 2 . 2 4 4 Treads 4 | 2 . . 2 . Leg 2 | . . . 2 . Wheel . | . . . . . Hover 5 | . . 2 . 3 Flight 1 | . . . . 1 Utility 16 | 1 2 4 4 5 Device 4 | . 1 2 1 . Storage 4 | 1 1 . 1 1 Processor 2 | . . 2 . . Hackware 1 | . . . . 1 Protection 5 | . . . 2 3 Artifact . | . . . . . Weapon 10 | 2 . 2 6 . Energy Gun 2 | 1 . . 1 . Energy Cannon . | . . . . . Ballistic Gun 7 | 1 . 2 4 . Ballistic Cannon . | . . . . . Launcher . | . . . . . Special Weapon . | . . . . . Impact Weapon . | . . . . . Slashing Weapon . | . . . . . Piercing Weapon . | . . . . . Special Melee Weapon 1 | . . . 1 . Unidentified Prototypes 1 | . . . . 1 Parts Lost 20 | . . . 8 12 Power 3 | . . . 2 1 Propulsion 7 | . . . 2 5 Utility 5 | . . . 1 4 Weapon 5 | . . . 3 2 Highest Loss Streak 6 | . . . 4 6 To Critical Strikes . | . . . . . Average Backups 8 | 4 6 8 9 9 Power . | . 1 1 . . Propulsion 1 | 2 2 2 1 1 Utility 3 | . 1 2 4 6 Weapon 2 | 1 1 2 2 . Tool/Special . | . . . . . Unused Backups 10 | . . 3 3 4 Power 1 | . . . 1 . Propulsion 2 | . . 2 . . Utility 5 | . . . 1 4 Weapon 2 | . . 1 1 . Tool/Special . | . . . . . Average Slot Usage (%) 92 | . 89 96 98 63 Engine 9 | . 14 9 10 . Treads 7 | . 28 13 2 8 Leg 6 | . . . 10 . Hover 6 | . . 8 8 3 Device 16 | . 4 23 17 10 Storage 10 | . 14 11 11 9 Processor 9 | . . 6 11 9 Hackware 1 | . . . . 8 Protection 2 | . . . 4 1 Energy Gun 2 | . 14 2 . 3 Ballistic Gun 17 | . 14 19 20 5 Peak Build Rating 21 | 6 9 19 21 21 Average Rating 16 | 3 6 16 18 14 On Entrance 8 | . 6 9 19 10 Avg Prop Armor Cover (%) 3 | . . . . 3 Naked Turns . | . . . . . Heaviest Build 29 | 11 17 27 29 22 Greatest Support 40 | 40 40 40 40 40 Greatest Overweight (x) 8 | 1 . 2 8 7 Average Overweight (x) . | . . . . . Largest Inventory Capacity 10 | 8 10 10 10 10 Average Capacity 9 | 7 8 10 10 10 Most Carried 10 | 8 8 10 10 10 Average Carried 8 | 4 6 8 9 9 Final Capacity 10 | 8 10 10 10 10 Final Carried 10 | 5 8 9 10 6 Class Distribution -------------------- 52% | Mutant 47% | Scavenger-Mutant Dominant Class ---------------- Mutant | -10/Materials Mutant | -9/Materials Scavenger-Mutant | -9/Storage Mutant | -8/Materials Resources | -11 -10 -9 -9 -8 ----------- Run | Yrd Mat Mat Sto Mat Matter Collected 985 | 113 87 124 611 50 Remotely . | . . . . . Salvage Created 1242 | 28 87 124 859 144 Parts 74 | 8 5 8 49 4 Haulers Intercepted 3 | . 1 . 2 . Recyclers Shooed 2 | . . . 2 . Parts Field Recycled . | . . . . . Retrieved Matter . | . . . . . Parts Self-Destructed . | . . . . . Prevented . | . . . . . Parts Restored . | . . . . . Kills | -11 -10 -9 -9 -8 ------- Run | Yrd Mat Mat Sto Mat Combat Hostiles Destroyed 19 | . . 2 16 1 Guns 19 | . . 2 16 1 Classes Destroyed 8 | 1 2 1 3 1 Worker 1 | . . . 1 . Tunneler 2 | 2 . . . . Hauler 3 | . 1 . 2 . Recycler 1 | . . . . 1 Watcher 3 | . 1 1 1 . Swarmer 2 | . . . 2 . Grunt 7 | . . . 7 . Sentry 10 | . . 2 7 1 Best Kill Streak 4 | 2 1 2 4 2 Combat Bots Only 2 | . . 1 2 1 Max Kills in Single Turn 2 | 1 1 1 2 1 Gunslinging 1 | . . . 1 . Exploded . | . . . . . Melee . | . . . . . Uniques/NPCs Destroyed . | . . . . . Combat | -11 -10 -9 -9 -8 -------- Run | Yrd Mat Mat Sto Mat Hostile Shots Fired 389 | . 8 32 192 157 Missed 110 | . 1 6 65 38 Hits 279 | . 7 26 127 119 Melee 7 | . . . . 7 Projectile 272 | . 7 26 127 112 Critical Strikes 5 | . . 1 2 2 Damage Taken 3548 | . 57 388 1602 1501 Core 766 | . 9 29 178 550 Absorbed by Shields . | . . . . . Core Remaining (%) 81 | 100 96 . 48 . Volleys Fired 91 | 2 7 12 56 14 Largest 2 | 2 2 2 2 2 Hottest 79 | 60 60 50 79 76 Shots Fired 171 | 4 14 24 109 20 Gun 171 | 4 14 24 109 20 Cannon . | . . . . . Launcher . | . . . . . Special . | . . . . . Kinetic 137 | 2 7 24 98 6 Thermal 34 | 2 7 . 11 14 Explosive . | . . . . . Electromagnetic . | . . . . . Robot Hit Streak 23 | 4 4 23 11 17 Robot Miss Streak 3 | . 2 1 3 1 Penetration Max . | . . . . . Secondary Targets 1 | . . . 1 . Max Gunslinging Chain 1 | . . . 1 . Shots Hit Robots 122 | 4 8 22 71 17 Core Hits 43 | 2 3 5 28 5 Critical Kills . | . . . . . Critical Parts Destroyed 2 | . . . 2 . Critical Strikes 2 | . . . 2 . Destroy 2 | . . . 2 . Melee Attacks 4 | . . . 2 2 Impact . | . . . . . Slashing . | . . . . . Piercing . | . . . . . Sneak Attacks 2 | . . . 2 . Combat Hostiles . | . . . . . Follow-up Attacks . | . . . . . Damage Inflicted 1812 | 52 90 372 1113 185 Guns 1812 | 52 90 372 1113 185 Cannons . | . . . . . Explosions . | . . . . . Melee . | . . . . . Ramming . | . . . . . Kinetic 1512 | 28 47 372 1026 39 Thermal 300 | 24 43 . 87 146 Explosive . | . . . . . Electromagnetic . | . . . . . Impact . | . . . . . Slashing . | . . . . . Piercing . | . . . . . Highest Corruption . | . . . . . Average Corruption . | . . . . . Corruption Purged . | . . . . . Corruption Blocked . | . . . . . Overload Shots . | . . . . . Overflow Damage . | . . . . . Projectiles . | . . . . . Explosions . | . . . . . Melee . | . . . . . Knockbacks . | . . . . . Impact . | . . . . . Kinetic . | . . . . . Secondary . | . . . . . Self-Inflicted Damage . | . . . . . Shots . | . . . . . Rammed . | . . . . . Targets Rammed . | . . . . . Kicked . | . . . . . Crushed . | . . . . . Highest Temperature 130 | . . 17 130 122 Average Temperature 32 | . . 6 33 38 Received Heat Transfer 1026 | . . 135 630 261 Siege Activations . | . . . . . Martial Activations . | . . . . . Shielding Activations . | . . . . . Robots Disrupted . | . . . . . Combat Hostiles . | . . . . . Robots Corrupted . | . . . . . Combat Hostiles . | . . . . . Parts Fried . | . . . . . Impact Corruptions . | . . . . . Robots Melted . | . . . . . Combat Hostiles . | . . . . . Parts Melted . | . . . . . Heat Transferred 742 | 50 100 . 222 370 Parts Sabotaged . | . . . . . Parts Stolen . | . . . . . Parts Stripped . | . . . . . Power Chain Reactions . | . . . . . Alert | -11 -10 -9 -9 -8 ------- Run | Yrd Mat Mat Sto Mat Maximum Alert Level . | . . . . . Low Security (%) 100 | 100 100 100 100 100 Level 1 . | . . . . . Level 2 . | . . . . . Level 3 . | . . . . . Level 4 . | . . . . . Level 5 . | . . . . . High Security . | . . . . . Max Security . | . . . . . Peak Influence 170 | 10 7 40 170 69 Initial 69 | . . . . 69 Average 28 | 1 . 5 41 21 Influence Increases 684 | 10 14 67 512 81 Destroy 0b10 Robot/C 380 | . . 40 320 20 Destroy 0b10 Robot/NC 50 | 10 10 5 20 5 Destroy Leader 162 | . 4 22 126 10 Disable Machine 15 | . . . 15 . Destroy Structure 2 | . . . 1 1 Partial Spotted 15 | . . . 15 . Lose Combat Pursuer 60 | . . . 15 45 Influence Decreases 684 | 10 14 67 346 247 Entered New Map 97 | . . . . 97 Time Decay 461 | 10 14 67 266 104 Lost Part 126 | . . . 80 46 Squads Dispatched 6 | . . . 4 2 Investigation 2 | . . . 1 1 Extermination . | . . . . . Reinforcement 4 | . . . 3 1 Assault . | . . . . . Garrison . | . . . . . Intercept . | . . . . . Searches Triggered . | . . . . . Construction Impeded . | . . . . . Haulers Reinforced . | . . . . . Active Scanning Responses . | . . . . . Cargo Convoy Interrupts . | . . . . . Stealth | -11 -10 -9 -9 -8 --------- Run | Yrd Mat Mat Sto Mat Distress Signals 3 | . . . 3 . Communications Jammed . | . . . . . Distress Signals . | . . . . . Times Spotted 58 | . 6 3 36 13 Peak Tracking Total 10 | . 3 3 6 10 Tactical Retreats 5 | . . . 4 1 ECM-based Alert Blocks 7 | . . . 7 . Traps | -11 -10 -9 -9 -8 ------- Run | Yrd Mat Mat Sto Mat Traps Triggered 6 | . . . 5 1 Indirectly . | . . . . . Trap Hack Attempts . | . . . . . Triggered . | . . . . . Disarmed . | . . . . . Reprogrammed . | . . . . . Reused . | . . . . . Traps Extracted . | . . . . . Installed . | . . . . . Triggered . | . . . . . Machines | -11 -10 -9 -9 -8 ---------- Run | Yrd Mat Mat Sto Mat Machines Disabled 1 | . . . 1 . Max in Single Turn 1 | . . . 1 . Machines Repaired . | . . . . . Machines Dismantled . | . . . . . Machines Sabotaged . | . . . . . Overloaded Fab Kills . | . . . . . Hacking | -11 -10 -9 -9 -8 --------- Run | Yrd Mat Mat Sto Mat Machines Accessed . | . . . . . Terminals . | . . . . . Fabricators . | . . . . . Repair Stations . | . . . . . Recycling Units . | . . . . . Scanalyzers . | . . . . . Garrison Access . | . . . . . Total Hacks . | . . . . . Successful . | . . . . . Failed . | . . . . . Catastrophic . | . . . . . Database Lockouts . | . . . . . Manual . | . . . . . Terminals . | . . . . . Fabricators . | . . . . . Repair Stations . | . . . . . Recycling Units . | . . . . . Scanalyzers . | . . . . . Garrison Access . | . . . . . Terminal Hacks . | . . . . . Fabricator Hacks . | . . . . . Repair Station Hacks . | . . . . . Recycling Unit Hacks . | . . . . . Scanalyzer . | . . . . . Garrison Access Hacks . | . . . . . Unauthorized Hacks . | . . . . . Terminals . | . . . . . Fabricators . | . . . . . Repair Stations . | . . . . . Recycling Units . | . . . . . Scanalyzers . | . . . . . Garrison Access . | . . . . . Data Cores Recovered . | . . . . . Used . | . . . . . Hacking Detections . | . . . . . Full Trace Events . | . . . . . Feedback Events . | . . . . . Feedback Blocked . | . . . . . Robot Schematics Acquired . | . . . . . Robots Built . | . . . . . Authchips . | . . . . . Time . | . . . . . Total Robot Build Rating . | . . . . . Part Schematics Acquired . | . . . . . Parts Built . | . . . . . Authchips . | . . . . . Time . | . . . . . Total Part Build Rating . | . . . . . Part Studies Acquired . | . . . . . Parts Repaired . | . . . . . Time . | . . . . . Parts Recycled . | . . . . . Recycled Matter . | . . . . . Retrieved Matter . | . . . . . Retrieved Components . | . . . . . Parts Scanalyzed . | . . . . . Part Schematics Acquired . | . . . . . Parts Damaged . | . . . . . Bothacking | -11 -10 -9 -9 -8 ------------ Run | Yrd Mat Mat Sto Mat Used RIF Installer . | . . . . . Robots Hacked 4 | . . . 2 2 Non-combat 2 | . . . 2 . Combat 2 | . . . . 2 Robot Hacks Applied 4 | . . . 2 2 parse_system 3 | . . . 1 2 no_distress 1 | . . . 1 . Relay Couplers Released . | . . . . . Fabnet Peak Effective % . | . . . . . Robots Rewired . | . . . . . Allies Hacked . | . . . . . Hacks Repelled . | . . . . . Allies | -11 -10 -9 -9 -8 -------- Run | Yrd Mat Mat Sto Mat Total Allies . | . . . . . Largest Group . | . . . . . Highest-Rated Group . | . . . . . Highest-Rated Ally . | . . . . . Total Orders . | . . . . . Ally Attacks . | . . . . . Total Damage . | . . . . . Kills . | . . . . . Allies Corrupted . | . . . . . Allies Melted . | . . . . . Intel | -11 -10 -9 -9 -8 ------- Run | Yrd Mat Mat Sto Mat Active Infowar (turns) 2091 | . 58 369 1336 328 Optics 1843 | . . 179 1336 328 Sensors 1836 | . . 289 1336 211 Terrain 248 | . 58 190 . . T.N.C. 63 | . . 63 . . ECM 1089 | . . 255 811 23 Robot Analysis Total . | . . . . . Derelict Logs Recovered . | . . . . . Drone Launches . | . . . . . Drone Recoveries . | . . . . . Exploration | -11 -10 -9 -9 -8 ------------- Run | Yrd Mat Mat Sto Mat Turns Passed 2298 | 61 204 369 1336 328 Spaces Moved 1110 | 37 111 158 633 171 Core 33 | 23 . . 5 5 Treads 353 | 14 111 87 83 58 Legs 332 | . . . 332 . Wheels . | . . . . . Hover 383 | . . 71 213 99 Flight 9 | . . . . 9 Fastest Speed 50 | 50 160 160 120 56 Average Speed 154 | 107 160 167 159 128 Slowest Speed 450 | 160 160 176 450 400 Overloaded Moves . | . . . . . Propulsion Burnouts . | . . . . . Robots Hopped . | . . . . . Potential Cave-ins . | . . . . . Cave-ins Triggered . | . . . . . Exploration Rate (%) 29 | 3 24 13 82 24 Regions Visited 4 Branch Regions 1 Pre-discovered Areas . | . . . . . Known Exits Taken . | . . . . . Unknown Exits Taken 4 | 1 1 1 1 . Scrap Searched . | . . . . . Spaces Dug . | . . . . . Terrain Destroyed . | . . . . . Melee . | . . . . . Projectile . | . . . . . AOE . | . . . . . Terrain Rammed . | . . . . . Walls Destroyed . | . . . . . Machines Disabled . | . . . . . Actions | -11 -10 -9 -9 -8 --------- Run | Yrd Mat Mat Sto Mat Total 1549 | 53 123 247 869 257 Wait 212 | . . 45 117 50 Move 1106 | 36 110 157 632 171 Hop . | . . . . . Pick Up 44 | 9 4 13 14 4 Fast Attach 7 | 2 . 1 1 3 Attach 22 | 4 1 3 6 8 Detach . | . . . . . Swap 22 | . 1 5 12 4 Drop 23 | . . 11 11 1 Fire 91 | 2 7 12 56 14 Melee 4 | . . . 2 2 Ram . | . . . . . Kick . | . . . . . Crush . | . . . . . Escape Stasis 18 | . . . 18 . Rewire . | . . . . . Trap . | . . . . . Miscellaneous . | . . . . . Route ------- -11/Scrapyard -10/Materials -9/Materials -9/Storage -8/Materials History --------- Turn | Location | Event 7 | -11/Scrapyard | Discovered new exit (range 15) 62 | -11/Scrapyard | Entered Materials 189 | -10/Materials | Discovered new exit (range 12) 266 | -10/Materials | Entered another Materials area 266 | -9/Materials | Evolved 2 slots: Utility x2 323 | -9/Materials | Build established: Mutant 558 | -9/Materials | Discovered new exit (range 5) 635 | -9/Materials | Entered Storage 785 | -9/Storage | Build established: Scavenger-Mutant 1391 | -9/Storage | Build established: Mutant 1783 | -9/Storage | Lost 4 parts (2n2w) 1944 | -9/Storage | Discovered new exit (range 12) 1957 | -9/Storage | Build established: Scavenger-Mutant 1970 | -9/Storage | Core integrity fell below 50% 1971 | -9/Storage | Entered Materials 1971 | -8/Materials | Evolved 2 slots: Utility x1, Weapon x1 1996 | -8/Materials | Lost 3 parts (1p1u1w) 2213 | -8/Materials | Lost 4 parts (1p2u1w) 2270 | -8/Materials | Core integrity fell below 50% 2287 | -8/Materials | Core integrity fell below 20% 2299 | -8/Materials | Destroyed by S-10 Pest with Light Assault Rifle Last Messages --------------- reinforcements. 02259_ ALERT: Hostiles spotted, dispatching reinforcements to Terminal M002. 02259_ O-16 Technician locks terminal. 02266_ Airjet destroyed. 02267_ Acquired Hrd. Light Armor Plating. 02279_ Airjet destroyed. 02279_ K-01 Serf collects debris. 02279_ S-10 Pest destroyed. 02284_ K-01 Serf collects debris. 02284_ Hrd. Light Armor Plating severed. 02286_ Slug penetrates Wall. 02292_ Hover Unit destroyed. 02295_ Lgt. Armor Plating destroyed. 02297_ Jacked G-47 Trooper... >>parse_system Reading system data... 02299_ Jacked S-10 Pest... >>parse_system Reading system data... Map ----- +----------------------------------------------------+ | ????????????????# ??????????? | | ????????????????# ??????????? | | ????????????##### #####+##### | | ????????????? ! | | ??????????????? | | ????????????????? """"" | | ??????????????????# """"" #? | | ??????????????????# """"" #? | | ??????????????????# #? | | ??????????????????# #? | | ??????????????????# ## | | ??????????????????# " | | ????#?????????????# | | ????# ????????????# = | | ????# ############# ######+# | | ????# % #??? | | ????# #?? | | ????# T !! ### | | ????# ! + | | ????# ### | | ????# ###+##?# | | ????# ! #? ??# | | ########### #? ??#? | | # g g [# # """ ?? | | # sTh/^ # """ ??##### | | # @gg=######### """ #?????? | | # l s#???????# #?????? | | ###########???????#] [#?????? | | ???????????????????#####??????? | | | | | | | | | | | | | | | | | | | | | | | | | | | | | | | | | | | | | | | | | | | +----------------------------------------------------+ Best States ------------- Heat Dissipation 31 Energy Generation 14 Energy Capacity 265 Matter Stores 229 Matter Capacity 300 Sight Range 18 Robot Scan Range 15 Terrain Scan Range 16 Terrain Scan Density 10 ECM Strength 1 Armor Coverage 300 Evasion (%) 55 Recoil Reduction 2 Defensive Hacking 10 Item Schematics ----------------- None Robot Schematics ------------------ None Fabricated ------------ Nothing Repaired ---------- Nothing Studied --------- None Alien Tech Used ----------------- None Achievements -------------- Junior Dev Challenges ------------ None Game ------ Seed ThermoelectricUtilityMapper Manual? 0 Play Time 00:25:22 Cumulative 19.8 hours Start 2026.04.08 @ 14:49:01 End 2026.04.08 @ 15:13:21 Sessions 1 Manual Loads 0 Difficulty Rogue Special Mode None Game No. 56 Rogue 56 Adventurer 0 Explorer 0 Win Type - Total 0 Types 0/0/0/0/0/0/0/0/0/0 Lore% 10 Gallery% 20 Achievement% 12 Wizard Run 0 Options --------- Layout 2 ASCII 0 Keyboard 0 Movement Mouse Keybinds 0 Fullscreen 1 Font 24/Crisp Map View 50x44 Zoom Use 0% Tactical HUD 1 Map Filters NONE Filters NONE Steam 1 RUN: 04cb492a-1e67-4f0f-acd1-f06c7934d862